lending/lending_fUSD_20241229
["ID","MTS","AMOUNT","RATE_DAILY","PERIOD"]
[347128993,1735512689171,-636.03,0.00016462,2]
[347128994,1735512689181,-764.12,0.00016462,2]
[347128995,1735512689190,-500.0,0.00016462,2]
[347128996,1735512689200,-631.0,0.00016462,2]
[347128997,1735512689210,-500.0,0.00016462,2]
[347128998,1735512689219,-938.69,0.00016462,2]
[347128999,1735512689229,-527.51,0.00016462,2]
[347129000,1735512689238,-1098.99,0.00016462,2]
[347129001,1735512689248,-652.26,0.00016462,2]
[347129002,1735512689257,-500.0,0.00016462,2]
[347129003,1735512689268,-690.73,0.00016462,2]
[347129004,1735512689277,-1047.47,0.00016462,2]
[347129005,1735512689287,-754.92,0.00016462,2]
[347129006,1735512689296,-594.49,0.00016462,2]
[347129007,1735512689305,-787.86,0.00016462,2]
[347129008,1735512689316,-542.51,0.00016462,2]
[347129009,1735512689325,-1295.78,0.00016462,2]
[347129010,1735512689334,-721.44,0.00016462,2]
[347129011,1735512689345,-1282.53,0.00016462,2]
[347129012,1735512689355,-500.0,0.00016462,2]
[347129013,1735512689364,-707.62,0.00016462,2]
[347129014,1735512689374,-520.56,0.00016462,2]
[347129015,1735512689383,-897.38,0.00016462,2]
[347129016,1735512689392,-773.37,0.00016462,2]
[347129017,1735512689401,-500.0,0.00016462,2]
[347129018,1735512689411,-500.0,0.00016462,2]
[347129019,1735512689420,-1066.23,0.00016462,2]
[347129020,1735512689430,-500.0,0.00016462,2]
[347129021,1735512689439,-500.0,0.00016462,2]
[347129022,1735512689448,-784.05,0.00016462,2]
[347129023,1735512689458,-500.0,0.00016462,2]
[347129024,1735512689467,-151.0,0.00016462,2]
[347129025,1735512689477,-151.0,0.00016462,2]
[347129026,1735512689486,-151.0,0.00016462,2]
[347129027,1735512689495,-151.0,0.00016462,2]
[347129028,1735512689504,-2676.41,0.00016463,2]
[347129029,1735512689514,-2564.89,0.00016463,2]
[347129030,1735512689523,-1492.89,0.00016463,2]
[347129031,1735512689533,-884.47,0.00016463,2]
[347129032,1735512689542,-1976.79,0.00016463,2]
[347129033,1735512689551,-13817.89,0.00016463,2]
[347129034,1735512689560,-642.9,0.00016463,2]
[347129035,1735512689571,-2884.15,0.00016463,2]
[347129036,1735512689581,-1610.76,0.00016463,2]
[347129037,1735512689590,-1018.64,0.00016463,2]
[347129038,1735512689599,-3127.69,0.00016463,2]
[347129039,1735512689609,-500.0,0.00016463,2]
[347129040,1735512689617,-1000.0,0.00016463,2]
[347129041,1735512689627,-983.6,0.00016463,2]
[347129042,1735512689636,-817.3,0.00016463,2]
[347129043,1735512689645,-3258.48,0.00016463,2]
[347129044,1735512689654,-2127.92,0.00016463,2]
[347129045,1735512689664,-151.0,0.00016463,2]
[347129046,1735512689674,-204.759286,0.00016463,2]
[347129047,1735512689683,-204.759286,0.00016463,2]
[347129048,1735512689693,-151.0,0.00016463,2]
[347129049,1735512689702,-151.0,0.00016463,2]
[347129050,1735512689711,-1205.83,0.00016465,2]
[347129051,1735512689721,-500.0,0.00016473,2]
[347129052,1735512689731,-500.0,0.00016473,2]
[347129053,1735512689742,-500.0,0.00016473,2]
[347129054,1735512689752,-581.0158844,0.00016473,2]
[347129055,1735512689761,-1885.0,0.0001648,2]
[347129056,1735512689771,-201.0,0.0001649,2]
[347129057,1735512689780,-3094.26807124,0.00016493,2]
[347129058,1735512689790,-1205.83,0.00016493,2]
[347129059,1735512689799,-150.0,0.00016493,2]
[347129060,1735512689808,-150.0,0.00016493,2]
[347129061,1735512689817,-150.0,0.00016493,2]
[347129062,1735512689826,-150.0,0.00016493,2]
[347129063,1735512689836,-437.4,0.00016493,2]
[347129064,1735512689846,-437.4,0.00016493,2]
[347129065,1735512689855,-437.4,0.00016493,2]
[347129066,1735512689867,-431.06,0.00016493,2]
[347129067,1735512689877,-436.65,0.00016493,2]
[347129068,1735512689887,-288.83,0.00016493,2]
[347129069,1735512689896,-182.33,0.00016493,2]
[347129070,1735512689906,-375121.89447293,0.00016494,2]
[347129071,1735512690299,-546.94,0.00014643,2]
[347129072,1735512690309,-15584.74368021,0.00016494,2]
[347129073,1735512690320,-19887.51607469,0.00016494,2]
[347129074,1735512690349,-7166.23,0.00014094,2]
[347129075,1735512690360,-101201.53852443,0.00016494,2]
[347129076,1735512690532,-363.60613795,0.00016494,2]
[347129077,1735512690552,-546.94,0.00014917,2]
[347129078,1735512690561,-421587.68381793,0.00016494,2]
[347129079,1735512690727,-500.0,0.00013271,2]
[347129080,1735512690738,-500.0,0.00013545,2]
[347129081,1735512690748,-500.0,0.00013819,2]
[347129082,1735512690758,-500.0,0.00014403,2]
[347129083,1735512690767,-500.0,0.00014642,2]
[347129084,1735512690777,-500.0,0.00014677,2]
[347129085,1735512690786,-500.0,0.00014916,2]
[347129086,1735512690795,-500.0,0.0001519,2]
[347129087,1735512690804,-546.94,0.00015191,2]
[347129088,1735512690813,-500.0,0.00015464,2]
[347129089,1735512690822,-153.23989459,0.00015465,2]
[347129090,1735512690833,-393.70010541,0.00015465,2]
[347129091,1735512690842,-305.37922525,0.00015738,2]
[347129092,1735512690853,-194.62077475,0.00015738,2]
[347129093,1735512690862,-546.94,0.00015739,2]
[347129094,1735512690871,-500.0,0.00016012,2]
[347129095,1735512690880,-546.94,0.00016013,2]
[347129096,1735512690889,-546.94,0.00016287,2]
[347129097,1735512690898,-1419.19966065,0.00016494,2]
[347129098,1735512690910,-300806.30882737,0.00016494,2]
[347129099,1735512690921,-1935.0,0.00016494,2]
[347129100,1735512690936,-1933.82,0.00016494,2]
[347129101,1735512690948,-669.4,0.00016494,2]
[347129102,1735512690958,-662.960001,0.00016494,2]
[347129103,1735512690969,-1051.3558125,0.00016494,2]
[347129104,1735512690980,-2178.0105047,0.00016494,2]
[347129105,1735512690996,-500.0,0.00016286,2]
[347129106,1735512691006,-46312.5,0.00016494,2]
[347129107,1735512691505,-500.0,0.00013138,2]
[347129108,1735512691515,-508.54,0.00013271,2]
[347129109,1735512691524,-605.54,0.00013271,2]
[347129110,1735512691533,-880.91999999,0.00013272,2]
[347129111,1735512691544,-166.36000001,0.00013272,2]
[347129112,1735512691553,-500.0,0.00013412,2]
[347129113,1735512691562,-188.19749318,0.00013546,2]
[347129114,1735512691573,-859.08250682,0.00013546,2]
[347129115,1735512691582,-431.9,0.00013686,2]
[347129116,1735512691591,-1047.28,0.0001382,2]
[347129117,1735512691600,-6550.05278418,0.00014368,2]
[347129118,1735512691616,-616.17721582,0.00014368,2]
[347129119,1735512691625,-7166.23,0.00014642,2]
[347129120,1735512691634,-7166.23,0.00014916,2]
[347129121,1735512691644,-500.0,0.00014951,2]
[347129122,1735512691653,-1121.58507598,0.0001519,2]
[347129123,1735512691670,-1685.0,0.0001519,2]
[347129124,1735512691852,-1047.28,0.00014094,2]
[347129125,1735512691861,-638.74109797,0.00014368,2]
[347129126,1735512691877,-408.53890203,0.00014368,2]
[347129127,1735512691886,-31.46109907,0.00014642,2]
[347129128,1735512691897,-610.42578665,0.00014642,2]
[347129129,1735512691908,-405.39311428,0.00014642,2]
[347129130,1735512691918,-744.47790266,0.0001519,2]
[347129131,1735512691929,-1837.79044697,0.0001519,2]
[347129132,1735512691940,-1777.37657439,0.0001519,2]
[347129133,1735512691949,-500.0,0.00015225,2]
[347129134,1735512691959,-2657.62342561,0.00015464,2]
[347129135,1735512691976,-4501.37649062,0.00015464,2]
[347129136,1735512691987,-7.23008377,0.00015464,2]
[347129137,1735512691997,-500.0,0.00015499,2]
[347129138,1735512692006,-57.90481823,0.00015738,2]
[347129139,1735512877906,240.96,0.00010137,2]
[347129140,1735512912690,800.65,0.00010833,2]
[347129142,1735512979612,635.27,0.00016497,120]
[347129143,1735513111412,150.0,0.00020753,120]
[347129144,1735513171236,150.0,0.00021755,120]
[347129146,1735513517141,500.0,0.0001495,120]
[347129147,1735513517426,500.0,0.00014977,120]
[347129148,1735513517693,500.0,0.00015005,120]
[347129149,1735513517989,500.0,0.00015032,120]
[347129150,1735513518249,541.08,0.0001506,120]
[347129160,1735513831585,-786.14370723,0.00011569,2]
[347129162,1735513831596,-195.82629277,0.00011569,2]
[347129164,1735513831605,-523.85446725,0.00012151,2]
[347129165,1735513831617,-480.12553275,0.00012151,2]
[347129166,1735513831626,-71.45950094,0.00012156,2]
[347129167,1735513831695,-480.84049906,0.00012156,2]
[347129168,1735513831705,-552.3,0.00012159,2]
[347129169,1735513831714,-552.3,0.00012163,2]
[347129170,1735513831724,-552.3,0.00012166,2]
[347129171,1735513831733,-552.3,0.00012169,2]
[347129172,1735513831742,-552.3,0.00012172,2]
[347129173,1735513831751,-552.3,0.00012175,2]
[347129174,1735513831760,-552.3,0.00012179,2]
[347129175,1735513831769,-552.3,0.00012182,2]
[347129176,1735513831778,-552.3,0.00012185,2]
[347129177,1735513831787,-552.3,0.00012188,2]
[347129178,1735513831796,-552.3,0.00012191,2]
[347129179,1735513831805,-552.3,0.00012195,2]
[347129180,1735513831815,-552.3,0.00012198,2]
[347129181,1735513831824,-552.3,0.00012201,2]
[347129182,1735513831833,-400.0,0.00012204,2]
[347129183,1735513831843,-552.3,0.00012204,2]
[347129184,1735513831852,-55.03017762,0.00012207,2]
[347129185,1735513831868,-497.26982238,0.00012207,2]
[347129186,1735513831877,-552.3,0.00012211,2]
[347129187,1735513831887,-552.3,0.00012214,2]
[347129188,1735513831896,-552.3,0.00012217,2]
[347129189,1735513831905,-1475.065326,0.00012249,2]
[347129190,1735513831915,-1502.0,0.00012254,2]
[347129191,1735513831924,-181.16092209,0.00012349,2]
[347129192,1735513831933,-356.49,0.00012353,2]
[347129193,1735513831942,-175.51,0.00012449,2]
[347129194,1735513831951,-1000.0,0.00012456,2]
[347129195,1735513831961,-5608.98,0.00012498,2]
[347129196,1735513831970,-250.0,0.00012503,2]
[347129197,1735513831979,-200.0,0.00012535,2]
[347129198,1735513831988,-150.0,0.00012575,2]
[347129199,1735513831997,-250.0,0.00012609,2]
[347129200,1735513832006,-23260.08614926,0.00012621,2]
[347129201,1735513832017,-27034.91385074,0.00012621,2]
[347129202,1735513832026,-250.0,0.00012712,2]
[347129203,1735513832039,-535.48,0.00012836,2]
[347129205,1735513832048,-1500.0,0.00012875,2]
[347129207,1735513832057,-1877.52,0.00012999,2]
[347129235,1735513832307,-870.73134245,0.00012999,2]
[347129237,1735513832322,-580.87891067,0.00012999,2]
[347129240,1735513832339,-304.40974688,0.00012999,2]
[347129242,1735513832349,-1348.82,0.00012999,2]
[347129244,1735513832358,-1875.34,0.00012999,2]
[347129246,1735513832368,-1581.07,0.00012999,2]
[347129248,1735513832377,-7603.34270731,0.00012999,2]
[347129252,1735513832408,-14390.07729269,0.00012999,2]
[347129254,1735513832417,-3875.75,0.00012999,2]
[347129256,1735513832426,-3555.78,0.00012999,2]
[347129258,1735513832435,-1404.80391627,0.00012999,2]
[347129260,1735513832446,-502.02608373,0.00012999,2]
[347129262,1735513832455,-1380.47585064,0.00012999,2]
[347129264,1735513832467,-3870.98414936,0.00012999,2]
[347129266,1735513832476,-800.65,0.00013097,2]
[347129268,1735513832486,-500.0,0.00013138,2]
[347129270,1735513832495,-500.0,0.00013138,2]
[347129272,1735513832505,-500.0,0.00013138,2]
[347129274,1735513832514,-565.23614349,0.00013138,2]
[347129276,1735513832523,-500.0,0.00013138,2]
[347129278,1735513832532,-387.93424417,0.00013138,2]
[347129280,1735513832544,-112.06575583,0.00013138,2]
[347129282,1735513832553,-500.0,0.00013138,2]
[347129284,1735513832563,-500.0,0.00013138,2]
[347129286,1735513832572,-500.0,0.00013138,2]
[347129288,1735513832582,-500.0,0.00013138,2]
[347129290,1735513832591,-500.0,0.00013138,2]
[347129292,1735513832600,-482.33505013,0.00013138,2]
[347129294,1735513832612,-17.66494987,0.00013138,2]
[347129296,1735513832621,-236.79505013,0.00013138,2]
[347129299,1735513832633,-263.20494987,0.00013138,2]
[347129301,1735513832642,-146.67727063,0.00013138,2]
[347129303,1735513832658,-353.32272937,0.00013138,2]
[347129305,1735513832667,-501.7,0.00013138,2]
[347129307,1735513832677,-500.0,0.00013138,2]
[347129309,1735513832686,-500.0,0.00013138,2]
[347129311,1735513832696,-625.91,0.00013138,2]
[347129313,1735513832705,-483.75412138,0.00013138,2]
[347129551,1735513837562,-16.24587862,0.00013138,2]
[347129552,1735513837574,-500.0,0.00013138,2]
[347129553,1735513837583,-61.31910172,0.00013138,2]
[347129554,1735513837594,-438.68089828,0.00013138,2]
[347129555,1735513837603,-500.0,0.00013138,2]
[347129556,1735513837613,-500.0,0.00013138,2]
[347129557,1735513837622,-687.9,0.00013138,2]
[347129558,1735513837631,-500.0,0.00013138,2]
[347129559,1735513837640,-500.0,0.00013138,2]
[347129560,1735513837649,-500.0,0.00013138,2]
[347129561,1735513837659,-500.0,0.00013138,2]
[347129562,1735513837668,-500.0,0.00013138,2]
[347129563,1735513837677,-500.0,0.00013138,2]
[347129564,1735513837686,-500.0,0.00013138,2]
[347129565,1735513837695,-500.0,0.00013138,2]
[347129566,1735513837704,-685.09,0.00013138,2]
[347129567,1735513837713,-500.0,0.00013138,2]
[347129568,1735513837723,-500.0,0.00013138,2]
[347129569,1735513837731,-541.99,0.00013138,2]
[347129570,1735513837741,-500.0,0.00013138,2]
[347129571,1735513837750,-500.0,0.00013138,2]
[347129572,1735513837759,-409.73910172,0.00013138,2]
[347129573,1735513837771,-90.26089828,0.00013138,2]
[347129574,1735513837780,-409.73910172,0.00013138,2]
[347129575,1735513837817,-90.51089828,0.00013138,2]
[347129576,1735513837826,-500.0,0.00013138,2]
[347129577,1735513837835,-500.0,0.00013138,2]
[347129578,1735513837844,-778.2,0.00013138,2]
[347129579,1735513837855,-500.0,0.00013138,2]
[347129580,1735513837865,-500.0,0.00013138,2]
[347129581,1735513837875,-500.0,0.00013138,2]
[347129582,1735513837884,-500.0,0.00013138,2]
[347129583,1735513837894,-500.0,0.00013138,2]
[347129584,1735513837903,-521.36,0.00013138,2]
[347129585,1735513837912,-500.0,0.00013138,2]
[347129586,1735513837921,-500.0,0.00013138,2]
[347129587,1735513837930,-503.01842221,0.00013138,2]
[347129588,1735513837939,-729.39,0.00013138,2]
[347129589,1735513837949,-738.34,0.00013138,2]
[347129590,1735513837958,-500.0,0.00013138,2]
[347129591,1735513837967,-500.0,0.00013138,2]
[347129592,1735513837976,-500.0,0.00013138,2]
[347129593,1735513837985,-500.0,0.00013138,2]
[347129594,1735513837994,-500.0,0.00013138,2]
[347129595,1735513838003,-500.0,0.00013138,2]
[347129596,1735513838012,-500.0,0.00013138,2]
[347129597,1735513838021,-524.5,0.00013138,2]
[347129598,1735513838034,-500.0,0.00013138,2]
[347129599,1735513838043,-700.47,0.00013138,2]
[347129600,1735513838052,-594.83,0.00013138,2]
[347129601,1735513838061,-500.0,0.00013138,2]
[347129602,1735513838073,-821.82,0.00013138,2]
[347129603,1735513838083,-743.33,0.00013138,2]
[347129604,1735513838092,-500.0,0.00013138,2]
[347129605,1735513838101,-47.64304981,0.00013138,2]
[347129606,1735513838113,-452.35695019,0.00013138,2]
[347129607,1735513838123,-358.99436281,0.00013138,2]
[347129608,1735513838140,-172.11563719,0.00013138,2]
[347129609,1735513838150,-500.0,0.00013138,2]
[347129610,1735513838159,-500.0,0.00013138,2]
[347129611,1735513838168,-500.0,0.00013138,2]
[347129612,1735513838178,-500.0,0.00013138,2]
[347129613,1735513838188,-820.66,0.00013138,2]
[347129614,1735513838197,-500.0,0.00013138,2]
[347129615,1735513838206,-740.03,0.00013138,2]
[347129616,1735513838216,-744.0,0.00013138,2]
[347129617,1735513838225,-1108.03,0.00013138,2]
[347129618,1735513838234,-749.12,0.00013138,2]
[347129619,1735513838244,-735.47,0.00013138,2]
[347129620,1735513838253,-728.35,0.00013138,2]
[347129621,1735513838264,-1368.15,0.00013138,2]
[347129622,1735513838273,-992.27,0.00013138,2]
[347129623,1735513838283,-740.19,0.00013138,2]
[347129624,1735513838293,-868.29,0.00013138,2]
[347129625,1735513838302,-500.0,0.0001327,2]
[347129626,1735513838311,-500.0,0.0001327,2]
[347129627,1735513838322,-500.0,0.0001327,2]
[347129628,1735513838331,-500.0,0.0001327,2]
[347129629,1735513838340,-500.0,0.0001327,2]
[347129630,1735513838349,-500.0,0.0001327,2]
[347129631,1735513838359,-500.0,0.0001327,2]
[347129632,1735513838368,-500.0,0.0001327,2]
[347129633,1735513838377,-500.0,0.0001327,2]
[347129634,1735513838386,-390.91642291,0.0001327,2]
[347129635,1735513838398,-109.08357709,0.0001327,2]
[347129636,1735513838407,-500.0,0.0001327,2]
[347129637,1735513838416,-463.26642291,0.0001327,2]
[347129638,1735513838431,-36.73357709,0.0001327,2]
[347129639,1735513838440,-500.0,0.0001327,2]
[347129640,1735513838449,-500.0,0.0001327,2]
[347129641,1735513838458,-500.0,0.0001327,2]
[347129642,1735513838467,-500.0,0.0001327,2]
[347129643,1735513838476,-500.0,0.0001327,2]
[347129644,1735513838485,-606.13547418,0.0001327,2]
[347129645,1735513838494,-500.0,0.0001327,2]
[347129646,1735513838503,-500.0,0.0001327,2]
[347129647,1735513838512,-500.0,0.0001327,2]
[347129648,1735513838521,-184.87568516,0.0001327,2]
[347129649,1735513838532,-315.12431484,0.0001327,2]
[347129650,1735513838542,-500.0,0.0001327,2]
[347129651,1735513838551,-500.0,0.0001327,2]
[347129652,1735513838559,-500.0,0.0001327,2]
[347129653,1735513838569,-500.0,0.0001327,2]
[347129654,1735513838579,-500.0,0.0001327,2]
[347129655,1735513838588,-506.18891826,0.0001327,2]
[347129656,1735513838597,-500.0,0.0001327,2]
[347129657,1735513838607,-500.0,0.0001327,2]
[347129658,1735513838617,-500.0,0.0001327,2]
[347129659,1735513838626,-500.0,0.0001327,2]
[347129660,1735513838635,-500.0,0.0001327,2]
[347129661,1735513838643,-500.0,0.0001327,2]
[347129662,1735513838653,-507.44119858,0.0001327,2]
[347129663,1735513838662,-539.25,0.0001327,2]
[347129664,1735513838671,-500.0,0.0001327,2]
[347129665,1735513838681,-500.0,0.0001327,2]
[347129666,1735513838690,-533.86,0.0001327,2]
[347129667,1735513838699,-500.0,0.0001327,2]
[347129668,1735513838708,-500.0,0.0001327,2]
[347129669,1735513838717,-500.0,0.0001327,2]
[347129670,1735513838726,-500.0,0.0001327,2]
[347129671,1735513838735,-500.0,0.0001327,2]
[347129672,1735513838745,-500.0,0.0001327,2]
[347129673,1735513838755,-500.0,0.0001327,2]
[347129674,1735513838764,-500.0,0.0001327,2]
[347129675,1735513838774,-500.0,0.0001327,2]
[347129676,1735513838783,-500.0,0.0001327,2]
[347129677,1735513838793,-500.0,0.0001327,2]
[347129678,1735513838803,-586.32,0.0001327,2]
[347129679,1735513838812,-500.0,0.0001327,2]
[347129680,1735513838823,-500.0,0.0001327,2]
[347129681,1735513838832,-500.0,0.0001327,2]
[347129682,1735513838841,-88.90137991,0.0001327,2]
[347129683,1735513838853,-411.09862009,0.0001327,2]
[347129684,1735513838862,-500.0,0.0001327,2]
[347129685,1735513838871,-500.0,0.0001327,2]
[347129686,1735513838880,-573.92,0.0001327,2]
[347129687,1735513838889,-500.0,0.0001327,2]
[347129688,1735513838898,-500.0,0.0001327,2]
[347129689,1735513839119,-500.0,0.0001327,2]
[347129690,1735513839129,-500.0,0.0001327,2]
[347129691,1735513839138,-188.88137991,0.0001327,2]
[347129695,1735513839633,-334.83862009,0.0001327,2]
[347129696,1735513839643,-500.0,0.0001327,2]
[347129697,1735513839652,-500.0,0.0001327,2]
[347129698,1735513839662,-500.0,0.0001327,2]
[347129699,1735513839671,-500.0,0.0001327,2]
[347129700,1735513839682,-500.0,0.0001327,2]
[347129701,1735513839691,-500.0,0.0001327,2]
[347129702,1735513839700,-500.0,0.0001327,2]
[347129703,1735513839709,-500.0,0.0001327,2]
[347129704,1735513839719,-500.0,0.0001327,2]
[347129705,1735513839728,-500.0,0.0001327,2]
[347129706,1735513839737,-500.0,0.0001327,2]
[347129707,1735513839746,-500.0,0.0001327,2]
[347129708,1735513839755,-660.63,0.0001327,2]
[347129709,1735513839764,-500.0,0.0001327,2]
[347129710,1735513839773,-500.0,0.0001327,2]
[347129711,1735513839782,-500.0,0.0001327,2]
[347129712,1735513839792,-500.0,0.0001327,2]
[347129713,1735513839801,-500.0,0.0001327,2]
[347129714,1735513839810,-500.0,0.0001327,2]
[347129715,1735513839820,-500.0,0.0001327,2]
[347129716,1735513839829,-592.25,0.0001327,2]
[347129717,1735513839838,-500.0,0.0001327,2]
[347129718,1735513839848,-500.0,0.0001327,2]
[347129719,1735513839857,-137.11888071,0.0001327,2]
[347129720,1735513839870,-362.88111929,0.0001327,2]
[347129721,1735513839879,-500.0,0.0001327,2]
[347129722,1735513839888,-500.0,0.0001327,2]
[347129723,1735513839897,-547.1,0.0001327,2]
[347129724,1735513839907,-510.32,0.0001327,2]
[347129725,1735513839916,-1224.55,0.0001327,2]
[347129726,1735513839925,-500.0,0.0001327,2]
[347129727,1735513839934,-500.0,0.0001327,2]
[347129728,1735513839943,-309.98440435,0.0001327,2]
[347129729,1735513839955,-190.01559565,0.0001327,2]
[347129730,1735513839964,-500.0,0.0001327,2]
[347129731,1735513839973,-500.0,0.0001327,2]
[347129732,1735513839982,-500.0,0.0001327,2]
[347129733,1735513839992,-500.0,0.0001327,2]
[347129734,1735513840001,-500.0,0.0001327,2]
[347129735,1735513840010,-312.83391356,0.0001327,2]
[347129736,1735513840021,-187.16608644,0.0001327,2]
[347129737,1735513840032,-496.35651971,0.0001327,2]
[347129738,1735513840045,-443.19153326,0.0001327,2]
[347129739,1735513840056,-493.14194703,0.0001327,2]
[347129740,1735513840066,-1343.45805297,0.0001327,2]
[347129741,1735513840090,-473.40548228,0.0001327,2]
[347129752,1735513842738,-500.0,0.00013138,2]
[347129753,1735513842747,-1222.52646475,0.0001327,2]
[347129754,1735513842757,-500.0,0.0001327,2]
[347129755,1735513842766,-500.0,0.0001327,2]
[347129756,1735513842775,-500.0,0.0001327,2]
[347129757,1735513842784,-500.0,0.0001327,2]
[347129758,1735513842793,-500.0,0.0001327,2]
[347129759,1735513842803,-500.0,0.0001327,2]
[347129760,1735513842812,-8433.32,0.0001327,2]
[347129761,1735513842822,-500.0,0.0001327,2]
[347129762,1735513842831,-541.78,0.0001327,2]
[347129763,1735513842840,-500.0,0.0001327,2]
[347129764,1735513842849,-500.0,0.0001327,2]
[347129765,1735513842859,-500.0,0.0001327,2]
[347129766,1735513842868,-500.0,0.0001327,2]
[347129767,1735513842877,-500.0,0.0001327,2]
[347129768,1735513842886,-500.0,0.0001327,2]
[347129769,1735513842896,-1943.94,0.0001327,2]
[347129770,1735513842905,-500.0,0.0001327,2]
[347129771,1735513842914,-500.0,0.0001327,2]
[347129772,1735513842923,-500.0,0.0001327,2]
[347129773,1735513842931,-500.0,0.0001327,2]
[347129774,1735513842940,-500.0,0.0001327,2]
[347129775,1735513842950,-500.0,0.0001327,2]
[347129776,1735513842959,-1359.74,0.0001327,2]
[347129777,1735513842967,-500.0,0.0001327,2]
[347129778,1735513842976,-500.0,0.0001327,2]
[347129780,1735513842985,-500.0,0.0001327,2]
[347129782,1735513842994,-500.0,0.0001327,2]
[347129783,1735513843003,-1524.25,0.0001327,2]
[347129784,1735513843011,-500.0,0.0001327,2]
[347129785,1735513843020,-500.0,0.0001327,2]
[347129786,1735513843031,-708.29,0.0001327,2]
[347129787,1735513843041,-683.2,0.0001327,2]
[347129788,1735513843050,-500.0,0.0001327,2]
[347129789,1735513843059,-500.0,0.0001327,2]
[347129790,1735513843067,-500.0,0.0001327,2]
[347129791,1735513843077,-1882.26,0.0001327,2]
[347129792,1735513843085,-725.33,0.0001327,2]
[347129793,1735513843094,-1107.81,0.0001327,2]
[347129794,1735513843103,-500.0,0.0001327,2]
[347129795,1735513843114,-500.0,0.0001327,2]
[347129796,1735513843123,-500.0,0.0001327,2]
[347129797,1735513843132,-500.0,0.0001327,2]
[347129798,1735513843141,-500.0,0.0001327,2]
[347129799,1735513843151,-500.0,0.0001327,2]
[347129800,1735513843160,-3828.78,0.0001327,2]
[347129801,1735513843169,-500.0,0.0001327,2]
[347129802,1735513843177,-500.0,0.0001327,2]
[347129803,1735513843186,-661.27,0.0001327,2]
[347129804,1735513843195,-2843.3,0.0001327,2]
[347129805,1735513843204,-500.0,0.0001327,2]
[347129806,1735513843213,-1012.88,0.0001327,2]
[347129807,1735513843222,-500.0,0.0001327,2]
[347129808,1735513843232,-545.53,0.0001327,2]
[347129809,1735513843241,-810.18,0.0001327,2]
[347129810,1735513843250,-500.0,0.0001327,2]
[347129811,1735513843259,-1448.78,0.0001327,2]
[347129812,1735513843269,-500.0,0.0001327,2]
[347129813,1735513843278,-697.5,0.0001327,2]
[347129814,1735513843287,-702.72,0.0001327,2]
[347129815,1735513843296,-500.0,0.0001327,2]
[347129816,1735513843306,-500.0,0.0001327,2]
[347129817,1735513843315,-1224.42,0.0001327,2]
[347129818,1735513843326,-500.0,0.0001327,2]
[347129819,1735513843335,-500.0,0.0001327,2]
[347129820,1735513843345,-500.0,0.0001327,2]
[347129821,1735513843355,-500.0,0.0001327,2]
[347129822,1735513843364,-962.4,0.0001327,2]
[347129823,1735513843374,-500.0,0.0001327,2]
[347129824,1735513843383,-500.0,0.0001327,2]
[347129825,1735513843392,-500.0,0.0001327,2]
[347129826,1735513843403,-500.0,0.0001327,2]
[347129827,1735513843415,-500.0,0.0001327,2]